[Event "AUT Bundesliga 2022-23"]
[Site "Jenbach"]
[Date "2022.11.05"]
[Round "3.21"]
[White "Roseneck, Jonas"]
[Black "Atlas, Valery"]
[Result "1-0"]
[ECO "B46"]
[WhiteElo "2414"]
[BlackElo "2412"]
[Annotator "TA"]
[PlyCount "81"]
[EventDate "2022.11.03"]
[EventType "team-tourn"]
[EventCountry "AUT"]
[SourceTitle "playchess.com"]
[Source "ChessBase"]
[SourceQuality "1"]
[TimeControl "40/5400+30:1800+30"]

{[%evp 11,81,27,18,0,0,0,0,0,0,2,13,17,18,14,23,31,35,19,29,30,27,0,55,8,65,-80,120,0,0,27,15,-10,-16,-55,0,0,4,0,44,0,40,37,95,42,104,43,56,37,48,50,34,48,187,57,126,67,81,93,94,0,0,0,0,0,0,0,12827,12831,12832,12832,1342,1128]} 1. e4 {[%emt 0:00:04]} c5 {[%emt 0:00:09]} 2. Nf3 {[%emt 0:00:04]} e6 {[%emt 0:00:20]} 3. d4 {[%emt 0:00:03]} cxd4 {[%emt 0:00:06]} 4. Nxd4 {[%emt 0:00:04]} Nc6 {[%emt 0:01:11]} 5. Nc3 {[%emt 0:00:20]} a6 {[%emt 0:03:34]} 6. Be3 {[%emt 0:01:09]} Qc7 {[%emt 0:01:38]} 7. g4 {[%emt 0:03:19] B48: Sicilian: Taimanov: 5 Nc3 Qc7 6 Be3 a6 without Be2.} b5 {[%emt 0:04:43]} 8. Nxc6 {[%emt 0:00:05]} Qxc6 {[%emt 0:07:57]} 9. Qd2 {[%emt 0:01:03] The position is equal.} b4 {[%emt 0:23:04]} 10. Ne2 {[%emt 0:00:11]} Bb7 {[%emt 0:02:07]} 11. O-O-O {[%emt 0:04:53]} Nf6 {[%emt 0:06:11]} 12. f3 {[%emt 0:07:23]} d5 {[%emt 0:06:43]} 13. g5 {[%emt 0:09:12]} Nd7 {[%emt 0:01:06] [#]} 14. Kb1 $146 {[%emt 0:04:32]} ({Predecessor:} 14. Nd4 Qc7 15. f4 dxe4 16. f5 e5 17. Nb3 a5 18. f6 a4 19. Bh3 Bc6 20. Bxd7+ Qxd7 {½-½ (29) Fier,A (2558)-Garcia Blanco,O (2344) Linares 2021}) 14... Qc7 {[%emt 0:08:07]} 15. exd5 {[%emt 0:10:16]} Bxd5 {[%emt 0:00:29]} 16. Nf4 {[%emt 0:00:08]} (16. Bg2 $5 {[%cal Re2f4]}) 16... Bb7 {[%emt 0:04:08]} (16... Bxf3 $11 17. Bg2 Bxd1 18. Bxa8 Bg4) 17. Bh3 {[%emt 0:03:07]} (17. Be2 $14 {might be stronger.}) 17... Ne5 {[%emt 0:11:22] [#]} (17... Bxf3 $11 18. Bg2 Bxd1 19. Bxa8 Bg4) 18. Qf2 {[%emt 0:14:29]} (18. Bxe6 $1 $14 {keeps the upper hand.} fxe6 19. Nxe6) 18... Be7 $2 {[%emt 0:03:11] [#]} (18... Bxf3 $17 {and life is bright.} 19. Bb6 Qc6) 19. Bb6 {[%emt 0:03:13]} (19. Bxe6 $1 $16 {[%mdl 512] And now Bb6 would win.} fxe6 20. Nxe6) 19... Qc4 $1 $11 {[%emt 0:03:42]} 20. Bd4 {[%emt 0:03:15]} Ng6 {[%emt 0:01:39]} 21. Nxg6 {[%emt 0:21:12]} hxg6 {[%emt 0:00:20]} 22. Bg2 {[%emt 0:00:04]} O-O {[%emt 0:03:24]} ({Don't do} 22... Bd5 23. b3 Qc6 24. Bxg7 $14) (22... Bxg5 $15 23. Bxg7 Rh7) 23. h4 {[%emt 0:00:03]} Rad8 $1 {[%emt 0:01:58]} 24. b3 {[%emt 0:03:38]} Qb5 {[%emt 0:00:22]} 25. f4 {[%emt 0:02:38] Bxb7 is the strong threat.} (25. h5 $5 {[%cal Rh5h6]} Qxg5 26. hxg6 $11) 25... Bxg2 {[%emt 0:00:47]} (25... Rxd4 $5 26. Rxd4 Bc5 $11) 26. Qxg2 Bc5 {[%emt 0:00:17]} (26... Qd5 $14 27. Qe2 Qc6) 27. Bb2 {[%emt 0:00:36]} ({White should try} 27. Be5 $1 $16) 27... Bb6 {[%emt 0:00:37]} (27... Qb6 $14) 28. Qe4 {[%emt 0:00:56]} (28. Rde1 $1 $16 {Hoping for h5.} Qd5 29. Qh2) 28... a5 {[%emt 0:02:48]} 29. a4 {[%emt 0:00:40]} (29. Be5 $5 {[%cal Re5d6]}) 29... bxa3 {[%emt 0:00:30]} 30. Bxa3 {[%emt 0:00:01]} Rxd1+ $1 {[%emt 0:00:21]} 31. Rxd1 {[%emt 0:00:01]} Re8 {[%emt 0:00:01]} (31... Rc8 $14) 32. Bb2 {[%emt 0:00:44]} (32. h5 $1 $18 {[%cal Rh5g6]} gxh5 33. Qb7) 32... Rf8 {[%emt 0:01:30] [#]} ({Black should play} 32... Rc8 $1 $14) 33. Rd6 {[%emt 0:01:06] White is more active.} (33. Qf3 $1 $16) 33... Bf2 {[%emt 0:00:23]} 34. h5 {[%emt 0:01:06]} gxh5 {[%emt 0:00:31] [#]} 35. g6 $40 {[%emt 0:00:01][%mdl 128] White is up to no good.} ({Better is} 35. Qf3 $1 $16 {[%cal Rf3f2]}) 35... Qf5 {[%emt 0:00:28]} 36. gxf7+ {[%emt 0:00:02]} Rxf7 {[%emt 0:00:16]} (36... Qxf7 $2 37. Qc6 Qxf4 38. Rd7 $18) 37. Qa8+ {[%emt 0:00:59]} Kh7 {[%emt 0:00:08]} 38. Rd8 {[%emt 0:00:18] Threatens to win with Rh8+.} h4 $2 {[%emt 0:00:27][%mdl 8192]} (38... Qxf4 $11 39. Rh8+ Kg6) 39. Rh8+ $18 {[%emt 0:00:17] White is clearly winning.} Kg6 {[%emt 0:00:00]} 40. Qg2+ {[%emt 0:00:00][%mdl 64] Skewer, Double Attack} Bg3 {[%emt 0:00:00]} 41. Rxh4 $1 {[%emt 0:00:14] Weighted Error Value: White=0.32/Black=0.32} 1-0

[Event "AUT Bundesliga 2022-23"]
[Site "Jenbach"]
[Date "2022.11.05"]
[Round "3.22"]
[White "Brunner, Nicolas"]
[Black "Bauer, Sebastian"]
[Result "0-1"]
[ECO "E73"]
[WhiteElo "2448"]
[BlackElo "2291"]
[Annotator "ChessBase"]
[PlyCount "126"]
[EventDate "2022.11.03"]
[EventType "team-tourn"]
[EventCountry "AUT"]
[SourceTitle "playchess.com"]
[Source "ChessBase"]
[SourceQuality "1"]
[TimeControl "40/5400+30:1800+30"]

1. d4 {[%emt 0:00:03]} Nf6 {[%emt 0:00:08]} 2. c4 {[%emt 0:00:03]} g6 {[%emt 0:00:09]} 3. Nc3 {[%emt 0:00:04]} Bg7 {[%emt 0:00:08]} 4. e4 {[%emt 0:00:04]} d6 {[%emt 0:00:10]} 5. Be2 {[%emt 0:00:04]} O-O {[%emt 0:00:10]} 6. Be3 {[%emt 0:00:04]} Na6 {[%emt 0:02:35]} 7. Nf3 {[%emt 0:00:24]} e5 {[%emt 0:01:55]} 8. O-O {[%emt 0:00:10]} Qe7 {[%emt 0:01:14]} 9. Bg5 {[%emt 0:00:26]} exd4 {[%emt 0:02:23]} 10. Nd5 {[%emt 0:01:35]} Qd8 {[%emt 0:00:20]} 11. Nxd4 {[%emt 0:00:13]} c6 {[%emt 0:00:34]} 12. Nxf6+ {[%emt 0:00:29]} Bxf6 {[%emt 0:00:09]} 13. Bxf6 {[%emt 0:00:24]} Qxf6 {[%emt 0:00:09]} 14. Qd2 {[%emt 0:01:11]} Nc5 {[%emt 0:01:04]} 15. f3 {[%emt 0:00:18]} a5 {[%emt 0:00:07]} 16. b3 {[%emt 0:05:25]} Rd8 {[%emt 0:02:51]} 17. Rad1 {[%emt 0:06:01]} Be6 {[%emt 0:30:52]} 18. Qe3 {[%emt 0:05:02]} Re8 {[%emt 0:12:26]} 19. Rfe1 {[%emt 0:07:36]} h5 {[%emt 0:08:50]} 20. Bf1 Rac8 {[%emt 0:03:49]} 21. Ne2 {[%emt 0:07:45]} Rcd8 {[%emt 0:03:42]} 22. Nc3 {[%emt 0:03:04]} Bc8 {[%emt 0:04:35]} 23. Rd2 {[%emt 0:08:10]} Ne6 {[%emt 0:08:05]} 24. Red1 {[%emt 0:03:21]} Qe5 {[%emt 0:02:45]} 25. g3 {[%emt 0:09:18]} g5 {[%emt 0:02:34]} 26. Bh3 {[%emt 0:03:15]} g4 {[%emt 0:07:31]} 27. f4 {[%emt 0:01:51]} Qf6 {[%emt 0:01:24]} 28. Bg2 {[%emt 0:00:45]} Ng7 {[%emt 0:01:03]} 29. Qd4 {[%emt 0:02:27]} Qh6 {[%emt 0:00:36]} 30. e5 {[%emt 0:08:14]} dxe5 {[%emt 0:01:34]} 31. Qxd8 {[%emt 0:00:45]} Rxd8 {[%emt 0:00:02]} 32. Rxd8+ {[%emt 0:00:07]} Kh7 {[%emt 0:00:03]} 33. Rxc8 {[%emt 0:00:44]} exf4 {[%emt 0:00:04]} 34. gxf4 {[%emt 0:09:26]} Qxf4 {[%emt 0:00:22]} 35. Kh1 {[%emt 0:04:06]} h4 {[%emt 0:00:53]} 36. Rf1 {[%emt 0:10:07]} Qe5 {[%emt 0:00:17]} 37. Ne4 {[%emt 0:03:27]} f5 {[%emt 0:00:08]} 38. Nf2 {[%emt 0:00:42]} Nh5 {[%emt 0:02:27]} 39. Rf8 {[%emt 0:01:08]} h3 {[%emt 0:01:05]} 40. Nxh3 {[%emt 0:00:00]} gxh3 {[%emt 0:00:00]} 41. Bf3 {[%emt 0:05:01]} Nf6 {[%emt 0:02:32]} 42. Bd1 {[%emt 0:10:20]} Kg7 {[%emt 0:05:37]} 43. Rd8 {[%emt 0:02:44]} Qb2 {[%emt 0:01:58]} 44. Rg1+ {[%emt 0:02:17]} Kf7 {[%emt 0:02:02]} 45. Bf3 {[%emt 0:03:55]} Qf2 {[%emt 0:01:54]} 46. Rd3 {[%emt 0:00:39]} Qc2 {[%emt 0:01:06]} 47. Rgd1 {[%emt 0:01:59]} Qf2 {[%emt 0:01:49]} 48. Rg1 {[%emt 0:02:22]} Ng4 {[%emt 0:02:49]} 49. Bxg4 {[%emt 0:00:16]} fxg4 {[%emt 0:00:03]} 50. Rdg3 {[%emt 0:01:48]} Qe2 {[%emt 0:00:42]} 51. Rc1 {[%emt 0:00:34]} Qxa2 {[%emt 0:00:39]} 52. Kg1 {[%emt 0:03:03]} Qb2 {[%emt 0:02:43]} 53. Rf1+ {[%emt 0:00:05]} Ke6 {[%emt 0:00:18]} 54. Rf4 {[%emt 0:01:20]} Qa1+ {[%emt 0:00:53]} 55. Kf2 {[%emt 0:01:39]} Qh1 {[%emt 0:00:48]} 56. Rfxg4 {[%emt 0:00:04]} Qxh2+ {[%emt 0:00:09]} 57. Ke3 {[%emt 0:00:28]} Qb2 {[%emt 0:01:11]} 58. Rh4 {[%emt 0:01:33]} Qxb3+ {[%emt 0:01:38]} 59. Kf2 {[%emt 0:00:04]} Qc2+ {[%emt 0:00:56]} 60. Kg1 {[%emt 0:00:04]} Kd6 {[%emt 0:02:30]} 61. Rgxh3 {[%emt 0:00:21]} a4 {[%emt 0:00:25]} 62. Rh7 {[%emt 0:01:19]} Qb1+ {[%emt 0:01:30]} 63. Kf2 {[%emt 0:00:16]} a3 {[%emt 0:00:48]} 0-1

[Event "AUT Bundesliga 2022-23"]
[Site "Jenbach"]
[Date "2022.11.05"]
[Round "3.23"]
[White "Handler, Lukas"]
[Black "Breder, Dennis"]
[Result "1-0"]
[ECO "D45"]
[WhiteElo "2442"]
[BlackElo "2450"]
[Annotator "ChessBase"]
[PlyCount "75"]
[EventDate "2022.11.03"]
[EventType "team-tourn"]
[EventCountry "AUT"]
[SourceTitle "playchess.com"]
[Source "ChessBase"]
[SourceQuality "1"]
[TimeControl "40/5400+30:1800+30"]

1. d4 {[%emt 0:00:03]} d5 {[%emt 0:00:11]} 2. c4 {[%emt 0:00:05]} c6 {[%emt 0:00:04]} 3. Nf3 {[%emt 0:00:09]} e6 {[%emt 0:00:10]} 4. e3 {[%emt 0:00:41]} Nd7 {[%emt 0:01:30]} 5. Nc3 {[%emt 0:04:46]} Ngf6 {[%emt 0:00:29]} 6. Be2 {[%emt 0:00:49]} Bd6 {[%emt 0:07:16]} 7. O-O {[%emt 0:00:31]} O-O {[%emt 0:00:04]} 8. b3 {[%emt 0:00:25]} b6 {[%emt 0:08:27]} 9. Bb2 {[%emt 0:00:40]} Bb7 {[%emt 0:00:03]} 10. Bd3 {[%emt 0:00:35]} Re8 {[%emt 0:04:11]} 11. Re1 {[%emt 0:08:02]} c5 {[%emt 0:20:41]} 12. cxd5 {[%emt 0:01:20]} exd5 {[%emt 0:00:12]} 13. Nb5 {[%emt 0:09:41]} Bf8 {[%emt 0:02:07]} 14. Rc1 {[%emt 0:07:29]} Ne4 {[%emt 0:17:42]} 15. Nc3 {[%emt 0:10:15]} Re6 {[%emt 0:07:06]} 16. Bf1 {[%emt 0:05:52]} Rc8 {[%emt 0:01:58]} 17. dxc5 {[%emt 0:06:51]} Nxc3 {[%emt 0:03:37]} 18. Bxc3 {[%emt 0:04:07]} bxc5 {[%emt 0:00:02]} 19. g3 {[%emt 0:02:52]} c4 {[%emt 0:03:02]} 20. b4 {[%emt 0:07:09]} Rh6 {[%emt 0:13:35]} 21. Nd4 {[%emt 0:05:41]} Ne5 {[%emt 0:03:21]} 22. f4 {[%emt 0:03:28]} Nc6 {[%emt 0:02:35]} 23. a3 {[%emt 0:02:19]} Ne7 {[%emt 0:00:25]} 24. Qc2 {[%emt 0:01:29]} Qd7 {[%emt 0:00:33]} 25. Bg2 {[%emt 0:00:43]} Ra6 {[%emt 0:01:01]} 26. Qb2 {[%emt 0:01:04]} Rh6 {[%emt 0:02:03]} 27. Rcd1 {[%emt 0:02:03]} Re8 {[%emt 0:00:28]} 28. Bf3 {[%emt 0:01:16]} Nc8 {[%emt 0:00:14]} 29. Qg2 {[%emt 0:01:17]} Nb6 {[%emt 0:00:46]} 30. Qc2 {[%emt 0:02:34]} Na4 {[%emt 0:00:50]} 31. Ba1 {[%emt 0:00:29]} a5 {[%emt 0:00:32]} 32. Nf5 {[%emt 0:01:54]} Rb6 {[%emt 0:00:38]} 33. Bg4 {[%emt 0:01:15]} Kh8 {[%emt 0:00:34]} 34. Nxg7 {[%emt 0:01:11]} Qxg4 {[%emt 0:00:24]} 35. Nxe8+ {[%emt 0:00:23]} d4 {[%emt 0:00:26]} 36. Bxd4+ {[%emt 0:00:37]} f6 {[%emt 0:00:01]} 37. Nxf6 {[%emt 0:02:51]} Qf3 {[%emt 0:00:14]} 38. Qxh7# 1-0

[Event "AUT Bundesliga 2022-23"]
[Site "Jenbach"]
[Date "2022.11.05"]
[Round "3.24"]
[White "Atlas, Dmitry"]
[Black "Halvax, Georg"]
[Result "0-1"]
[ECO "B22"]
[WhiteElo "2238"]
[BlackElo "2432"]
[Annotator "TA"]
[PlyCount "98"]
[EventDate "2022.11.03"]
[EventType "team-tourn"]
[EventCountry "AUT"]
[SourceTitle "playchess.com"]
[Source "ChessBase"]
[SourceQuality "1"]
[TimeControl "40/5400+30:1800+30"]

{[%evp 17,98,9,16,2,47,3,12,13,0,0,67,60,69,48,68,0,0,-21,7,13,5,-49,33,25,63,0,60,66,66,-12,0,-36,3,-93,0,0,0,-142,-143,-155,26,-122,-128,-130,-130,-121,-127,-122,-111,-123,-127,-125,-110,-133,-112,-123,-123,-120,-110,-120,-55,-70,-70,-409,-408,-403,-381,-2011,-1858,-1375,-1332,-4137,-4137,-4137,-4137,-4137,-4137,-2697,-1330,-29975,-29977,-29976,-29976]} 1. e4 {[%emt 0:00:08]} c5 {[%emt 0:00:10]} 2. c3 {[%emt 0:00:08]} d5 {[%emt 0:00:10]} 3. exd5 {[%emt 0:00:14]} Qxd5 {[%emt 0:00:07]} 4. d4 {[%emt 0:00:08]} Nc6 {[%emt 0:00:11]} 5. Nf3 {[%emt 0:00:09]} Bg4 {[%emt 0:00:09]} 6. Be2 {[%emt 0:00:30]} cxd4 {[%emt 0:00:09]} 7. cxd4 {[%emt 0:00:20]} e6 {[%emt 0:00:09]} 8. Nc3 {[%emt 0:00:31]} Bb4 {[%emt 0:00:10]} 9. O-O {[%emt 0:00:15]} Qa5 {[%emt 0:00:07]} 10. h3 {[%emt 0:04:19] was the old line (10.d5). B22: Sicilian: 2 c3.} Bf5 {[%emt 0:00:08]} (10... Bxf3 $5 11. Bxf3 Nf6 $11) 11. Qb3 {[%emt 0:06:30]} Nge7 $1 {[%emt 0:00:56]} 12. a3 {[%emt 0:05:45] The position is equal.} Bxc3 {[%emt 0:01:05]} 13. bxc3 {[%emt 0:00:17]} Qc7 {[%emt 0:00:12] [#]} (13... O-O $11) 14. c4 $146 {[%emt 0:11:21]} ({Predecessor:} 14. Be3 O-O 15. c4 Rfd8 16. Rfd1 Be4 17. Ng5 Na5 18. Qb2 Bg6 19. Rac1 Nf5 20. Nf3 Nxe3 21. fxe3 {1-0 (44) McDominique,L (2090)-Anabieza,C (1990) San Antonio 2014}) 14... O-O {[%emt 0:03:12]} 15. Bb2 $36 {[%emt 0:07:33][%mdl 2048] White has the initiative.} Rac8 {[%emt 0:01:05]} 16. Ne5 {[%emt 0:06:05]} (16. Rac1 $14) 16... Na5 {[%emt 0:07:13]} 17. Qb4 {[%emt 0:06:02]} Rfd8 {[%emt 0:05:29]} (17... f6 $5 {[%cal Rf6e5]} 18. Ng4 Ng6 $11) 18. Rfd1 {[%emt 0:10:32]} f6 {[%emt 0:04:16]} 19. Ng4 {[%emt 0:03:48]} (19. Nf3 $11) 19... b6 {[%emt 0:03:25]} (19... b5 $1 $15 20. d5 Nxc4 21. Nxf6+ gxf6 22. Bxc4 a5) 20. Rac1 {[%emt 0:03:23]} Ng6 {[%emt 0:02:34]} 21. g3 {[%emt 0:12:25]} ({Better is} 21. Ne3 $14) 21... Be4 {[%emt 0:03:01]} (21... Qe7 $11) 22. d5 {[%emt 0:01:25]} f5 {[%emt 0:01:40]} 23. dxe6 {[%emt 0:04:25]} (23. Nh2 $14) 23... fxg4 $11 {[%emt 0:02:21] Really sharp!} 24. Bxg4 {[%emt 0:02:49] This bishop pair is nice.} Ne5 {[%emt 0:05:26] Prevents Rd7. aiming for ...Nd3.} 25. Bxe5 {[%emt 0:02:21]} (25. Qe1 $11 Rxd1 26. Rxd1 Naxc4 27. e7 Nxb2 28. Be6+ Kh8 29. Qxe4 Nxd1 30. Bxc8 Qxe7 31. Bg4) 25... Rxd1+ {[%emt 0:11:18]} ({Black should play} 25... Qxe5 $17 26. Rd7 Nc6) 26. Rxd1 {[%emt 0:00:26]} Qxe5 {[%emt 0:00:03]} 27. c5 {[%emt 0:03:01]} (27. Qe7 $1 $11 {keeps the balance.} h5 28. f4) 27... Nc6 $17 {[%emt 0:04:13]} 28. Qc4 {[%emt 0:01:18] [#] e7+ is the strong threat.} Ne7 $2 {[%emt 0:00:34] [#]} (28... b5 $1 $17 {[%cal Rb5c4]} 29. Qe2 Re8) 29. cxb6 $1 {[%emt 0:01:34]} h5 {[%emt 0:00:01]} (29... Rxc4 $2 30. Rd8#) 30. Qd4 {[%emt 0:04:20]} Qxd4 {[%emt 0:07:07]} 31. Rxd4 {[%emt 0:00:01]} Rc1+ {[%emt 0:01:57]} 32. Rd1 {[%emt 0:00:02]} Rxd1+ {[%emt 0:00:06]} 33. Bxd1 {[%emt 0:00:01]} axb6 {[%emt 0:00:40]} 34. Bxh5 {[%emt 0:00:03]} Nd5 {[%emt 0:00:59]} 35. f3 {[%emt 0:02:10]} Bf5 {[%emt 0:01:38][%csl LRe6,LRh3]} 36. Bf7+ {[%emt 0:00:06]} Kf8 {[%emt 0:00:05] Hoping for ...Ne3.} 37. g4 {[%emt 0:00:48]} Bc2 {[%emt 0:00:14] Strongly threatening ...Nc3.} 38. Kf2 {[%emt 0:01:25]} Nc3 {[%emt 0:04:06]} (38... Ke7 $17 {And now ...g5 would win.} 39. Kg3 Nc7) 39. Ke3 $15 {[%emt 0:01:06]} Nb5 {[%emt 0:02:29] Black is more active.} 40. Kf4 $2 {[%emt 0:00:00][%mdl 8192] White does not recover from this.} (40. f4 $15) 40... Nxa3 $19 {[%emt 0:00:00] Threatens to win with ...b5.} 41. Ke5 {[%emt 0:06:53]} Ke7 {[%emt 0:01:35] White must now prevent ...b5.} 42. f4 $2 {[%emt 0:06:25]} (42. Kd5 g5 43. Bh5) 42... b5 {[%emt 0:03:23][%cal Bb6b5,Bb5b4,Bb4b3][%mdl 32]} 43. f5 {[%emt 0:03:14]} b4 {[%emt 0:00:21]} 44. Bg6 {[%emt 0:08:56]} b3 {[%emt 0:03:12] ( -> ...b2)} 45. g5 {[%emt 0:00:17]} Nc4+ {[%emt 0:00:16]} 46. Kd4 {[%emt 0:01:53]} Nd6 {[%emt 0:00:10]} ({Stronger than} 46... b2 47. f6+ gxf6 48. gxf6+ Kxe6 49. Bxc2 $11) 47. Kc3 {[%emt 0:02:04]} Bxf5 {[%emt 0:00:47]} (47... Nxf5 $142 48. Bh5 Ne3) 48. Bxf5 {[%emt 0:00:41]} Nxf5 {[%emt 0:00:07]} 49. Kxb3 {[%emt 0:00:05]} Kxe6 {[%emt 0:00:06] Weighted Error Value: White=0.69/Black=0.30} 0-1

[Event "AUT Bundesliga 2022-23"]
[Site "Jenbach"]
[Date "2022.11.05"]
[Round "3.25"]
[White "Saric, Ivan"]
[Black "Bluebaum, Matthias"]
[Result "0-1"]
[ECO "C42"]
[WhiteElo "2668"]
[BlackElo "2647"]
[Annotator "ChessBase"]
[PlyCount "132"]
[EventDate "2022.11.03"]
[EventType "team-tourn"]
[EventCountry "AUT"]
[SourceTitle "playchess.com"]
[Source "ChessBase"]
[SourceQuality "1"]
[TimeControl "40/5400+30:1800+30"]

1. e4 {[%emt 0:00:02]} e5 {[%emt 0:00:06]} 2. Nf3 {[%emt 0:00:07]} Nf6 {[%emt 0:00:04]} 3. Nxe5 {[%emt 0:00:27]} d6 {[%emt 0:00:06]} 4. Nf3 {[%emt 0:00:02]} Nxe4 {[%emt 0:00:05]} 5. d4 {[%emt 0:00:03]} d5 {[%emt 0:00:07]} 6. Bd3 {[%emt 0:00:03]} Bd6 {[%emt 0:00:10]} 7. O-O {[%emt 0:00:09]} O-O {[%emt 0:00:04]} 8. c4 {[%emt 0:00:04]} c6 {[%emt 0:00:02]} 9. Re1 {[%emt 0:00:54]} Bf5 {[%emt 0:00:38]} 10. Qb3 {[%emt 0:00:11]} Qd7 {[%emt 0:00:24]} 11. c5 {[%emt 0:02:33]} Bc7 {[%emt 0:00:09]} 12. Nbd2 {[%emt 0:00:34]} Re8 {[%emt 0:04:17]} 13. Nh4 {[%emt 0:01:23]} Be6 {[%emt 0:03:04]} 14. Qc2 {[%emt 0:00:21]} Na6 {[%emt 0:01:04]} 15. a3 {[%emt 0:00:40]} Bg4 {[%emt 0:00:26]} 16. Re3 {[%emt 0:14:47]} Bd8 {[%emt 0:26:34]} 17. Nhf3 {[%emt 0:03:03]} Bf6 {[%emt 0:02:46]} 18. Nb3 {[%emt 0:14:59]} Bxf3 {[%emt 0:08:10]} 19. Rxf3 {[%emt 0:02:51]} Nc7 {[%emt 0:00:36]} 20. Be3 {[%emt 0:01:43]} Ne6 {[%emt 0:10:36]} 21. Rd1 {[%emt 0:06:57]} Qe7 {[%emt 0:09:12]} 22. Kf1 {[%emt 0:07:10]} N6g5 {[%emt 0:07:45]} 23. Rf4 {[%emt 0:02:51]} Kh8 {[%emt 0:02:24]} 24. h4 {[%emt 0:02:22]} Ne6 {[%emt 0:02:32]} 25. Rf3 {[%emt 0:00:32]} Bxh4 {[%emt 0:01:10]} 26. Bxe4 {[%emt 0:00:49]} dxe4 {[%emt 0:00:01]} 27. Qxe4 {[%emt 0:00:39]} Bf6 {[%emt 0:01:37]} 28. g3 {[%emt 0:11:03]} Rad8 {[%emt 0:00:43]} 29. Kg2 {[%emt 0:00:32]} Kg8 {[%emt 0:01:10]} 30. Rh1 {[%emt 0:11:58]} g6 {[%emt 0:00:51]} 31. g4 {[%emt 0:09:11]} Rd5 {[%emt 0:07:28]} 32. Rfh3 {[%emt 0:00:47]} Nxd4 {[%emt 0:01:12]} 33. Qxe7 {[%emt 0:00:56]} Rxe7 {[%emt 0:00:05]} 34. g5 {[%emt 0:04:39]} Rxe3 {[%emt 0:01:33]} 35. Rxe3 {[%emt 0:00:28]} Rxg5+ {[%emt 0:00:04]} 36. Kf1 {[%emt 0:00:09]} Ne6 {[%emt 0:00:05]} 37. Rh4 {[%emt 0:01:08]} Bxb2 {[%emt 0:04:01]} 38. Rb4 {[%emt 0:00:19]} Bxa3 {[%emt 0:03:20]} 39. Rxb7 {[%emt 0:00:07]} Rf5 {[%emt 0:00:20]} 40. Rxa7 {[%emt 0:00:00]} Bxc5 {[%emt 0:00:00]} 41. Nxc5 {[%emt 0:04:32]} Rxc5 {[%emt 0:02:20]} 42. Rf3 {[%emt 0:00:18]} Ng5 {[%emt 0:00:12]} 43. Rf6 {[%emt 0:02:45]} Kg7 {[%emt 0:01:52]} 44. Rd6 {[%emt 0:00:04]} Rc1+ {[%emt 0:01:22]} 45. Ke2 {[%emt 0:03:40]} Rc2+ {[%emt 0:01:35]} 46. Ke3 {[%emt 0:01:12]} Rc3+ {[%emt 0:03:07]} 47. Ke2 {[%emt 0:00:46]} Rc4 {[%emt 0:01:50]} 48. Rc7 {[%emt 0:01:07]} c5 {[%emt 0:00:49]} 49. Rdc6 {[%emt 0:03:05]} Re4+ {[%emt 0:00:48]} 50. Kd3 {[%emt 0:00:17]} Re1 {[%emt 0:03:14]} 51. Rxc5 {[%emt 0:00:48]} Ne6 {[%emt 0:00:05]} 52. Rc1 {[%emt 0:00:03]} Nf4+ {[%emt 0:00:10]} 53. Kc2 {[%emt 0:02:30]} Re2+ {[%emt 0:00:30]} 54. Kd1 {[%emt 0:00:33]} Rxf2 {[%emt 0:00:32]} 55. R7c2 {[%emt 0:00:11]} Rxc2 {[%emt 0:03:00]} 56. Rxc2 {[%emt 0:00:04]} g5 {[%emt 0:00:30]} 57. Rc5 {[%emt 0:00:09]} Ne6 {[%emt 0:00:34]} 58. Ra5 {[%emt 0:00:18]} h5 {[%emt 0:00:25]} 59. Ke2 {[%emt 0:00:06]} f5 {[%emt 0:00:41]} 60. Ra6 {[%emt 0:00:26]} Kf6 {[%emt 0:00:31]} 61. Kf3 {[%emt 0:00:04]} h4 {[%emt 0:00:29]} 62. Ke3 {[%emt 0:01:14]} g4 {[%emt 0:00:40]} 63. Ra8 {[%emt 0:00:02]} h3 {[%emt 0:00:37]} 64. Rh8 {[%emt 0:00:05]} Ke5 {[%emt 0:01:19]} 65. Rh5 {[%emt 0:00:08]} Nf4 {[%emt 0:00:39]} 66. Rh8 {[%emt 0:00:06]} Nd5+ {[%emt 0:00:05]} 0-1